bitfinex/quotes_SOLUSD_20230104
["timestamp","ask_amount","ask_price","bid_price","bid_amount"]
[1672807283615,1.19252275,13.524,13.515,22.13152883]
[1672807284473,1.19252275,13.524,13.516,30.0]
[1672807284863,1.19252275,13.524,13.516,52.13152883]
[1672807285080,1.19252275,13.524,13.517,20.0]
[1672807285399,55.47,13.533,13.525,2.38504549]
[1672807286544,30.0,13.532,13.525,2.38504549]
[1672807288018,30.0,13.532,13.525,4.549e-05]
[1672807288235,30.0,13.527,13.525,4.549e-05]
[1672807288456,30.0,13.525,13.516,112.21744549]
[1672807288674,55.51,13.524,13.516,112.21744549]
[1672807289075,55.49,13.528,13.517,30.0]
[1672807289507,55.49,13.528,13.516,112.21744549]
[1672807289717,97.11646011,13.528,13.516,112.21744549]
[1672807290257,12.7311703,13.529,13.517,22.13152883]
[1672807290558,12.7311703,13.529,13.518,30.0]
[1672807290748,12.7311703,13.529,13.517,30.0]
[1672807290959,12.7311703,13.529,13.516,112.21744549]
[1672807291390,12.7311703,13.529,13.518,30.0]
[1672807291589,12.7311703,13.529,13.519,20.0]
[1672807294746,41.83916539,13.528,13.516,112.21744549]
[1672807294968,30.0,13.526,13.516,112.21744549]
[1672807295171,55.5,13.525,13.516,112.21744549]
[1672807295395,30.0,13.524,13.516,112.21744549]
[1672807295705,30.0,13.524,13.516,28.05436137]
[1672807295706,30.0,13.522,13.516,28.05436137]
[1672807295918,30.0,13.522,13.505,38.44534086]
[1672807295919,75.52,13.521,13.505,38.44534086]
[1672807296235,30.0,13.52,13.504,38.44534086]
[1672807296425,75.53,13.519,13.504,84.28594086]
[1672807296641,30.0,13.518,13.504,45.8406]
[1672807296968,30.0,13.516,13.504,45.8406]
[1672807297177,30.0,13.514,13.497,38.44534086]
[1672807297384,55.55,13.513,13.497,38.44534086]
[1672807297600,20.0,13.512,13.495,38.44534086]
[1672807297789,55.56,13.511,13.495,38.44534086]
[1672807298001,30.0,13.509,13.495,38.44534086]
[1672807298211,55.57,13.508,13.495,38.44534086]
[1672807298431,30.0,13.507,13.495,38.44534086]
[1672807300023,30.0,13.505,13.492,68.7314]
[1672807300215,55.59,13.504,13.493,38.44534086]
[1672807300424,30.0,13.503,13.493,38.44534086]
[1672807302124,30.0,13.503,13.492,107.17674086]
[1672807302320,30.0,13.503,13.492,68.7314]
[1672807302843,30.0,13.503,13.491,38.44534086]
[1672807303063,30.0,13.503,13.492,38.44534086]
[1672807303481,30.0,13.503,13.491,38.44534086]
[1672807304535,55.59,13.505,13.491,38.44534086]
[1672807304752,30.0,13.507,13.491,38.44534086]
[1672807305367,30.0,13.507,13.49,38.44534086]
[1672807305578,30.0,13.505,13.49,38.44534086]
[1672807306031,30.0,13.505,13.489,107.21494086]
[1672807307797,30.0,13.503,13.489,107.21494086]
[1672807308119,30.0,13.503,13.489,68.7696]
[1672807308849,30.0,13.501,13.489,68.7696]
[1672807310858,30.0,13.499,13.489,68.7696]
[1672807311064,30.0,13.499,13.486,68.70481902]
[1672807311269,55.62,13.498,13.486,68.70481902]
[1672807311499,30.0,13.504,13.487,30.0]
[1672807312114,55.59,13.503,13.487,30.0]
[1672807312335,55.59,13.503,13.487,78.0355]
[1672807312655,55.59,13.503,13.488,20.0]
[1672807313069,55.59,13.504,13.489,30.0]
[1672807315390,30.0,13.503,13.488,68.0355]
[1672807315604,55.6,13.502,13.488,68.0355]
[1672807315911,30.0,13.501,13.488,68.0355]
[1672807316228,55.6,13.502,13.488,68.0355]
[1672807316440,55.6,13.502,13.489,30.0]
[1672807316754,55.59,13.504,13.489,30.0]
[1672807316963,55.59,13.505,13.489,30.0]
[1672807317362,30.0,13.504,13.489,30.0]
[1672807317571,55.59,13.503,13.489,78.6614]
[1672807318420,55.59,13.504,13.489,78.6614]
[1672807318637,55.59,13.505,13.489,78.6614]
[1672807320643,55.59,13.505,13.491,30.0]
[1672807320957,55.59,13.505,13.49,48.2623]
[1672807321169,110.0752,13.506,13.491,30.0]
[1672807321388,110.0752,13.506,13.492,48.2623]
[1672807321586,110.0752,13.506,13.493,30.0]
[1672807321799,110.0752,13.506,13.493,77.6654]
[1672807323385,110.0752,13.506,13.493,47.6654]
[1672807324326,12.7311703,13.529,13.494,30.0]
[1672807324538,12.7311703,13.529,13.495,20.0]
[1672807324539,30.0,13.52,13.495,20.0]
[1672807324726,181.1742,13.519,13.496,70.7888]
[1672807324936,30.0,13.517,13.497,30.0]
[1672807325146,55.54,13.516,13.498,20.0]
[1672807325357,55.54,13.516,13.498,66.9575]
[1672807325695,30.0,13.515,13.498,66.9575]
[1672807325882,55.55,13.514,13.499,46.9575]
[1672807326094,30.0,13.513,13.499,46.9575]
[1672807326317,112.46,13.513,13.499,46.9575]
[1672807326533,30.0,13.512,13.499,46.9575]
[1672807329679,142.46,13.513,13.5,30.0]
[1672807329680,112.46,13.513,13.5,30.0]
[1672807329877,112.46,13.513,13.5,78.3759]
[1672807332827,55.52,13.522,13.501,22.13152883]
[1672807333040,114.9974,13.522,13.503,30.0]
[1672807333250,114.9974,13.522,13.505,30.0]
[1672807333474,114.9974,13.522,13.506,47.8827]
[1672807333676,114.9974,13.522,13.507,50.0]
[1672807333996,114.9974,13.522,13.509,30.0]
[1672807334827,114.9974,13.522,13.509,77.4791]
[1672807340306,114.9974,13.522,13.509,62.50214138]
[1672807340307,70.13380029,13.521,13.509,62.50214138]
[1672807340498,30.0,13.519,13.494,77.08790399]
[1672807340710,102.4629,13.518,13.494,77.08790399]
[1672807341038,102.4629,13.518,13.492,23.0683]
[1672807341039,30.0,13.516,13.492,100.15620399]
[1672807341253,190.9993,13.515,13.492,23.0683]
[1672807341567,85.30614312,13.514,13.492,23.0683]
[1672807341772,78.32205508,13.512,13.492,23.0683]
[1672807341987,30.0,13.509,13.492,23.0683]
[1672807342181,52.52205931,13.507,13.492,23.0683]
[1672807342391,52.52205931,13.504,13.486,145.79272301]
[1672807342600,30.0,13.501,13.486,145.79272301]
[1672807343024,88.79611179,13.5,13.486,145.79272301]
[1672807343355,30.0,13.499,13.487,20.0]
[1672807343670,30.0,13.499,13.486,145.79272301]
[1672807344071,110.79854513,13.499,13.486,145.79272301]
[1672807344812,30.0,13.499,13.486,145.79272301]
[1672807345022,30.0,13.501,13.487,20.0]
[1672807346068,63.18276957,13.503,13.488,30.0]
[1672807346297,63.18276957,13.503,13.489,20.0]
[1672807346512,30.0,13.502,13.489,20.0]
[1672807346932,47.24529561,13.501,13.488,20.0]
[1672807347249,30.0,13.5,13.487,20.0]
[1672807347465,85.61,13.5,13.487,20.0]
[1672807347648,47.24529561,13.499,13.487,20.0]
[1672807349012,30.0,13.498,13.487,20.0]
[1672807349432,30.0,13.496,13.487,20.0]
[1672807350612,75.88982894,13.496,13.487,20.0]
[1672807350802,121.35586807,13.496,13.487,20.0]
[1672807351228,147.30386808,13.496,13.486,68.70481902]
[1672807351436,30.0,13.494,13.486,68.70481902]
[1672807351646,30.0,13.492,13.486,68.70481902]
[1672807352063,45.88982894,13.491,13.486,68.70481902]
[1672807352278,30.0,13.49,13.486,68.70481902]
[1672807352698,45.88982894,13.489,13.486,68.70481902]
[1672807352908,30.0,13.488,13.486,68.70481902]
[1672807353437,45.22864894,13.487,13.486,68.70481902]
[1672807355655,45.22864894,13.487,13.486,0.00481902]
[1672807355846,135.36467852,13.487,13.486,0.00481902]
[1672807356263,90.69468807,13.487,13.486,0.00481902]
[1672807356492,30.0,13.488,13.486,0.00481902]
[1672807356695,45.46603913,13.487,13.486,0.00481902]
[1672807356907,128.92854976,13.487,13.486,0.00481902]
[1672807357113,30.0,13.486,13.47,69.104]
[1672807357329,82.31171935,13.484,13.47,69.104]
[1672807357539,52.31171935,13.482,13.47,69.104]
[1672807357749,30.0,13.481,13.47,69.104]
[1672807358161,39.38241894,13.48,13.47,69.104]
[1672807358369,30.0,13.479,13.466,77.08790399]
[1672807358583,30.0,13.479,13.464,154.71789994]
[1672807358584,48.49029986,13.478,13.467,20.0]
[1672807359112,30.0,13.479,13.466,77.08790399]
[1672807359430,30.0,13.477,13.466,77.08790399]
[1672807359646,30.0,13.481,13.477,60.0]
[1672807360073,67.95451627,13.481,13.477,60.0]
[1672807361221,30.0,13.479,13.477,60.0]
[1672807361635,37.95272227,13.478,13.477,60.0]
[1672807362059,84.43726875,13.478,13.462,77.08790399]
[1672807362266,30.0,13.476,13.46,47.3601]
[1672807362496,54.77601888,13.474,13.46,47.3601]
[1672807362704,30.0,13.473,13.46,47.3601]
[1672807362901,54.77601888,13.472,13.46,47.3601]
[1672807363113,54.77601888,13.47,13.46,47.3601]
[1672807363338,54.77601888,13.468,13.457,101.40720399]
[1672807363536,54.77601888,13.47,13.457,77.08790399]
[1672807363735,37.95783561,13.471,13.458,107.08790399]
[1672807363947,48.85974548,13.47,13.458,30.0]
[1672807364155,48.85974548,13.472,13.458,30.0]
[1672807364382,78.85974548,13.474,13.458,30.0]
[1672807364580,48.85974548,13.474,13.459,20.0]
[1672807364790,30.0,13.473,13.459,20.0]
[1672807365009,45.05358423,13.472,13.457,124.03970399]
[1672807365227,45.05358423,13.472,13.458,30.0]
[1672807365420,75.05358423,13.473,13.458,30.0]
[1672807365951,75.05358423,13.473,13.458,107.08790399]
[1672807366272,30.0,13.473,13.459,20.0]
[1672807367110,46.1895,13.475,13.46,22.13152883]
[1672807367317,46.1895,13.475,13.461,50.0]
[1672807367647,30.0,13.491,13.463,77.08790399]
[1672807367850,113.3986,13.482,13.464,20.0]
[1672807368042,113.3986,13.482,13.464,97.08790399]
[1672807368251,113.3986,13.482,13.462,72.053]
[1672807368252,30.0,13.481,13.462,72.053]
[1672807368470,55.69,13.48,13.463,20.0]
[1672807368678,30.0,13.479,13.464,30.0]
[1672807368886,68.26331747,13.479,13.465,20.0]
[1672807369117,38.26331747,13.478,13.465,20.0]
[1672807370050,30.0,13.477,13.462,72.053]
[1672807370268,55.71,13.476,13.462,72.053]
[1672807370578,30.0,13.475,13.462,72.053]
[1672807370783,118.60337442,13.475,13.462,72.053]
[1672807370995,164.23552387,13.475,13.462,72.053]
[1672807371209,117.6828,13.475,13.463,30.0]
[1672807371635,55.69,13.479,13.463,30.0]
[1672807371845,173.3728,13.48,13.463,30.0]
[1672807372254,206.32431721,13.48,13.463,30.0]
[1672807372466,150.63431721,13.48,13.464,97.08790399]
[1672807372691,150.63431721,13.48,13.465,30.0]
[1672807372901,150.63431721,13.48,13.466,20.0]
[1672807373108,117.6828,13.48,13.466,20.0]
[1672807373313,55.66,13.487,13.467,30.0]
[1672807373650,30.0,13.489,13.468,22.607]
[1672807373845,30.0,13.486,13.469,48.5532]
[1672807374046,30.0,13.486,13.47,25.199]
[1672807374257,90.50149392,13.485,13.47,5.199]
[1672807374479,30.0,13.484,13.469,48.5532]
[1672807374691,55.68,13.483,13.469,48.5532]
[1672807374898,30.0,13.482,13.469,48.5532]
[1672807375103,30.0,13.48,13.469,48.5532]
[1672807375427,55.69,13.479,13.469,48.5532]
[1672807375741,77.14658318,13.48,13.47,20.0]
[1672807375938,132.83658318,13.48,13.47,20.0]
[1672807376150,112.71892629,13.48,13.47,20.0]
[1672807377009,65.57234311,13.48,13.47,20.0]
[1672807377537,30.0,13.478,13.47,20.0]
[1672807377930,65.57234311,13.478,13.47,20.0]
[1672807378991,35.57234311,13.478,13.47,20.0]
[1672807379320,30.0,13.48,13.47,20.0]
[1672807380564,171.4505,13.481,13.48,56.68139307]
[1672807380778,55.69,13.481,13.48,56.68139307]
[1672807381957,30.0,13.482,13.48,56.68139307]
[1672807382278,55.69,13.481,13.48,56.68139307]
[1672807382778,88.05764811,13.481,13.48,56.68139307]
[1672807384058,131.11935814,13.481,13.48,0.00139307]
[1672807384271,124.15046581,13.48,13.461,23.048]
[1672807384465,111.63222264,13.479,13.461,70.3936]
[1672807384671,30.0,13.477,13.461,70.3936]
[1672807384887,30.0,13.475,13.461,70.3936]
[1672807385098,30.0,13.475,13.458,77.08790399]
[1672807385310,75.71,13.474,13.452,77.08790399]
[1672807385527,74.80615511,13.473,13.452,77.08790399]
[1672807385741,75.72,13.472,13.452,77.08790399]
[1672807385952,30.0,13.471,13.451,47.3456]
[1672807386263,30.0,13.471,13.452,77.08790399]
[1672807386264,30.0,13.469,13.452,77.08790399]
[1672807386458,75.74,13.468,13.451,47.3456]
[1672807386667,30.0,13.467,13.451,47.3456]
[1672807386880,30.0,13.465,13.451,47.3456]
[1672807387089,55.76,13.464,13.451,47.3456]
[1672807387314,30.0,13.463,13.451,47.3456]
[1672807387529,30.0,13.461,13.451,47.3456]
[1672807387740,55.76,13.462,13.461,20.3163562]
[1672807387953,40.76488171,13.462,13.461,20.3163562]
[1672807388143,158.29199569,13.462,13.461,20.3163562]
[1672807388473,30.0,13.461,13.447,77.08790399]
[1672807388793,30.0,13.459,13.447,77.08790399]
[1672807388984,30.0,13.457,13.447,77.08790399]
[1672807389201,55.79,13.456,13.447,77.08790399]
[1672807389413,30.0,13.454,13.447,77.08790399]
[1672807389945,30.0,13.454,13.442,77.08790399]
[1672807390265,30.0,13.454,13.44,77.08790399]
[1672807390679,30.0,13.454,13.444,77.08790399]
[1672807391002,30.0,13.454,13.445,77.08790399]
[1672807391311,74.40228171,13.455,13.445,77.08790399]
[1672807391312,44.40228171,13.455,13.445,77.08790399]
[1672807391734,30.0,13.473,13.444,107.08790399]
[1672807392054,56.15217182,13.463,13.45,77.08790399]
[1672807392260,50.4656372,13.464,13.45,77.08790399]
[1672807392471,106.61780902,13.462,13.451,30.0]
[1672807392684,106.61780902,13.462,13.45,77.08790399]
[1672807393001,146.50995739,13.462,13.451,77.08790399]
[1672807394035,146.50995739,13.462,13.449,77.08790399]
[1672807394250,106.61780902,13.462,13.45,20.0]
[1672807394977,30.0,13.461,13.45,20.0]
[1672807395191,56.15217182,13.462,13.448,20.0]
[1672807395403,92.5865754,13.462,13.448,20.0]
[1672807397934,57.9318204,13.468,13.448,20.0]
[1672807397935,30.0,13.486,13.452,77.08790399]
[1672807398141,23.4075,13.481,13.455,77.08790399]
[1672807398339,23.4075,13.481,13.456,50.0]
[1672807398547,30.0,13.479,13.456,50.0]
[1672807398765,30.0,13.479,13.457,77.08790399]
[1672807398984,30.0,13.479,13.458,127.08790399]
[1672807399198,30.0,13.479,13.458,107.08790399]
[1672807399511,30.0,13.479,13.459,20.0]
[1672807399713,30.0,13.477,13.459,20.0]
[1672807399925,55.7,13.478,13.459,20.0]
[1672807400127,55.68,13.482,13.46,30.0]
[1672807400341,55.68,13.482,13.461,20.0]
[1672807400667,55.68,13.482,13.462,30.0]
[1672807400860,70.6165,13.484,13.462,30.0]
[1672807400861,126.2865,13.484,13.462,30.0]
[1672807401065,126.2865,13.484,13.464,30.0]
[1672807401484,126.2865,13.484,13.466,30.0]
[1672807401717,126.2865,13.484,13.467,20.0]
[1672807401924,126.2865,13.484,13.468,30.0]
[1672807402120,78.3573,13.484,13.469,20.0]
[1672807402325,22.6873,13.484,13.47,30.0]
[1672807403833,55.65,13.49,13.47,30.0]
[1672807404149,30.0,13.508,13.472,30.0]
[1672807404150,114.9997,13.489,13.472,30.0]
[1672807404551,114.9997,13.489,13.473,20.0]
[1672807404763,114.9997,13.489,13.474,30.0]
[1672807404992,114.9997,13.489,13.475,20.0]
[1672807405192,264.6,13.509,13.476,30.0]
[1672807405393,118.0929,13.505,13.476,30.0]
[1672807405600,118.0929,13.505,13.478,30.0]
[1672807405812,118.0929,13.505,13.48,30.0]
[1672807405813,55.59,13.504,13.48,30.0]
[1672807406125,55.59,13.504,13.481,20.0]
[1672807406350,55.59,13.504,13.482,35.02]
[1672807406547,118.0929,13.505,13.484,30.0]
[1672807406758,118.0929,13.505,13.485,8.355]
[1672807406967,118.0929,13.505,13.486,20.0]
[1672807407177,118.0929,13.505,13.488,30.0]
[1672807407390,118.0929,13.505,13.489,37.45]
[1672807407615,55.58,13.506,13.49,30.0]
[1672807407830,299.0871,13.52,13.491,40.09]
[1672807408045,30.0,13.519,13.492,30.0]
[1672807408233,55.53,13.518,13.494,30.0]
[1672807408442,30.0,13.517,13.495,43.71]
[1672807408652,55.54,13.516,13.496,30.0]
[1672807408868,30.0,13.515,13.497,23.17]
[1672807409198,55.55,13.514,13.498,20.0]
[1672807409599,30.0,13.513,13.497,41.83]
[1672807409808,55.56,13.512,13.497,41.83]
[1672807410036,55.56,13.512,13.497,20.0]
[1672807410444,30.0,13.513,13.497,20.0]
[1672807410655,30.0,13.511,13.497,20.0]
[1672807410865,55.57,13.51,13.497,20.0]
[1672807411301,55.55,13.514,13.497,42.41]
[1672807411930,55.55,13.514,13.498,30.0]
[1672807412137,55.55,13.514,13.499,20.0]
[1672807412346,55.54,13.516,13.499,20.0]
[1672807412555,30.0,13.515,13.499,20.0]
[1672807412753,55.55,13.514,13.499,20.0]
[1672807413712,30.0,13.513,13.499,20.0]
[1672807413904,55.56,13.512,13.499,20.0]
[1672807415287,55.55,13.514,13.499,20.0]
[1672807419181,30.0,13.513,13.499,20.0]
[1672807419395,55.56,13.512,13.499,20.0]
[1672807419588,55.56,13.512,13.497,20.0]
[1672807421496,30.0,13.513,13.497,20.0]
[1672807421688,30.0,13.511,13.494,23.4766]
[1672807421902,30.0,13.509,13.494,23.4766]
[1672807422107,55.57,13.508,13.494,23.4766]
[1672807422322,30.0,13.507,13.494,23.4766]
[1672807422535,30.0,13.505,13.494,23.4766]
[1672807422742,55.59,13.504,13.494,23.4766]
[1672807422948,30.0,13.503,13.494,23.4766]
[1672807423169,55.6,13.502,13.487,48.3483]
[1672807423494,30.0,13.501,13.479,9.769]
[1672807423807,30.0,13.501,13.472,30.0]
[1672807423808,30.0,13.499,13.473,9.774]
[1672807424017,30.0,13.497,13.474,30.0]
[1672807424226,30.0,13.495,13.475,11.92]
[1672807424449,55.63,13.494,13.475,11.92]
[1672807424626,30.0,13.493,13.475,11.92]
[1672807425170,30.0,13.491,13.475,11.92]
[1672807425574,30.0,13.491,13.476,20.0]
[1672807425784,30.0,13.491,13.477,19.77]
[1672807426003,55.64,13.493,13.477,19.77]
[1672807426204,55.64,13.493,13.478,50.0]
[1672807426410,55.63,13.495,13.48,30.0]
[1672807427487,30.0,13.494,13.479,20.77]
[1672807427701,55.64,13.493,13.476,21.59]
[1672807427890,94.44615447,13.493,13.476,21.59]
[1672807428105,38.80615447,13.492,13.476,21.59]
[1672807428315,30.0,13.491,13.477,20.0]
[1672807428641,55.65,13.49,13.477,20.0]
[1672807428847,30.0,13.49,13.477,20.0]
[1672807429056,30.0,13.49,13.476,20.0]
[1672807429462,55.64,13.491,13.477,30.0]
[1672807429669,55.64,13.491,13.478,20.0]
[1672807429883,55.64,13.493,13.478,20.0]
[1672807430099,50.64531986,13.49,13.474,24.8802]
[1672807430309,50.64531986,13.49,13.476,30.0]
[1672807430310,55.65,13.489,13.476,30.0]
[1672807430529,30.0,13.488,13.477,20.0]
[1672807430746,72.12283473,13.488,13.475,26.4]
[1672807430958,42.12283473,13.487,13.476,20.0]
[1672807431155,30.0,13.486,13.476,20.0]
[1672807431363,55.67,13.485,13.474,24.8802]
[1672807431592,30.0,13.484,13.474,23.8802]
[1672807431807,30.0,13.482,13.474,23.8802]
[1672807432127,30.0,13.48,13.466,22.9137]
[1672807432314,30.0,13.48,13.463,27.05]
[1672807432523,103.4216414,13.479,13.456,30.0]
[1672807432747,30.0,13.478,13.458,30.0]
[1672807432960,9.97431374,13.478,13.459,24.5]
[1672807433154,47.6458414,13.477,13.46,30.0]
[1672807433367,30.0,13.476,13.461,25.08]
[1672807433682,44.37353967,13.475,13.461,25.08]
[1672807434097,44.37353967,13.475,13.462,20.0]
[1672807434306,44.37353967,13.475,13.463,28.81]
[1672807434516,30.0,13.474,13.463,28.81]
[1672807434740,30.0,13.474,13.464,20.0]
[1672807435366,30.0,13.474,13.462,20.0]
[1672807435580,30.0,13.474,13.463,31.76]
[1672807435800,30.0,13.476,13.462,20.0]
[1672807436107,68.34673967,13.476,13.462,20.0]
[1672807436825,38.34673967,13.476,13.462,20.0]
[1672807437036,55.7,13.477,13.462,20.0]
[1672807437246,55.69,13.479,13.464,30.0]
[1672807437580,55.69,13.479,13.465,20.0]
[1672807437767,55.69,13.479,13.466,30.0]
[1672807437989,38.34673967,13.48,13.466,30.0]
[1672807438314,55.69,13.479,13.467,20.0]
[1672807440431,94.03673967,13.479,13.467,20.0]
[1672807440638,55.69,13.479,13.465,20.0]
[1672807440855,55.69,13.481,13.465,20.0]
[1672807442869,55.68,13.483,13.466,30.0]
[1672807443043,30.0,13.482,13.467,20.0]
[1672807443370,55.69,13.481,13.468,30.0]
[1672807443577,55.68,13.482,13.469,20.0]
[1672807444203,30.0,13.481,13.469,20.0]
[1672807444409,55.69,13.48,13.469,20.0]
[1672807444620,55.69,13.48,13.467,20.0]
[1672807445256,41.83916539,13.479,13.461,45.14]
[1672807445461,55.7,13.478,13.458,48.6688]
[1672807445675,30.0,13.477,13.459,20.0]
[1672807445899,55.71,13.476,13.46,30.0]
[1672807446103,55.71,13.476,13.461,62.21]
[1672807446415,30.0,13.476,13.461,62.21]
[1672807446631,55.71,13.475,13.461,62.21]
[1672807447032,55.71,13.475,13.461,20.0]
[1672807447883,30.0,13.476,13.462,41.4]
[1672807448092,30.0,13.476,13.459,77.08790399]
[1672807448093,30.0,13.474,13.459,77.08790399]
[1672807448301,30.0,13.472,13.46,20.0]
[1672807449050,30.0,13.472,13.458,48.6688]
[1672807451036,30.0,13.472,13.458,82.6288]
[1672807451247,30.0,13.472,13.459,20.0]
[1672807453159,30.0,13.47,13.459,20.0]
[1672807459562,55.73,13.471,13.459,20.0]
[1672807459993,30.0,13.47,13.459,20.0]
[1672807468085,166.7325,13.471,13.459,50.0]
[1672807468297,111.0025,13.471,13.462,38.08169801]
[1672807469034,48.7869,13.478,13.471,120.41449313]
[1672807469249,30.0,13.489,13.471,120.41449313]
[1672807469444,73.712,13.49,13.472,30.0]
[1672807469657,55.65,13.489,13.473,20.0]
[1672807470073,55.65,13.489,13.474,30.0]
[1672807470288,104.222,13.49,13.475,20.0]
[1672807470511,48.572,13.49,13.476,30.0]
[1672807470715,55.65,13.49,13.476,30.0]
[1672807470918,30.0,13.495,13.477,20.0]
[1672807470919,55.63,13.494,13.477,20.0]
[1672807471120,30.0,13.493,13.477,20.0]
[1672807471327,55.64,13.492,13.477,20.0]
[1672807471966,125.44,13.51,13.48,25.11]
[1672807472179,70.9,13.507,13.481,20.0]
[1672807472382,70.9,13.507,13.482,30.0]
[1672807472383,30.0,13.506,13.482,30.0]
[1672807472606,30.0,13.506,13.484,30.0]
[1672807472819,55.59,13.505,13.485,67.8044]
[1672807473032,30.0,13.504,13.486,30.0]
[1672807473235,30.0,13.502,13.487,20.0]
[1672807473448,55.6,13.501,13.487,20.0]
[1672807474404,30.0,13.5,13.487,20.0]
[1672807475025,30.0,13.5,13.486,20.0]
[1672807475653,55.6,13.501,13.487,30.0]
[1672807475872,55.6,13.502,13.488,20.0]
[1672807477013,55.6,13.502,13.489,30.0]
[1672807477236,55.6,13.502,13.49,20.0]
[1672807478277,55.59,13.504,13.49,20.0]
[1672807479359,55.59,13.504,13.491,30.0]
[1672807480088,189.1333,13.507,13.491,30.0]
[1672807480292,165.7924,13.507,13.491,30.0]
[1672807480510,165.7924,13.507,13.493,30.0]
[1672807486717,30.0,13.506,13.49,120.3202]
[1672807486926,55.59,13.505,13.491,30.0]
[1672807487329,55.59,13.505,13.49,90.3202]
[1672807487541,30.0,13.504,13.49,90.3202]
[1672807487744,55.59,13.503,13.49,90.3202]
[1672807488178,55.59,13.505,13.491,30.0]
[1672807488390,55.58,13.506,13.491,30.0]
[1672807488583,30.0,13.505,13.491,30.0]
[1672807488802,55.59,13.504,13.49,90.3202]
[1672807489547,12.7311703,13.529,13.49,463.16371522]
[1672807489743,110.5599,13.521,13.507,120.08121755]
[1672807489951,71.2932,13.528,13.51,22.46]
[1672807490166,55.5,13.527,13.511,30.0]
[1672807491211,85.5,13.527,13.511,30.0]
[1672807491425,85.5,13.527,13.508,84.95618189]
[1672807491426,85.5,13.527,13.508,30.0]
[1672807491638,30.0,13.526,13.509,20.0]
[1672807491949,55.5,13.525,13.509,20.0]
[1672807494064,30.0,13.524,13.509,20.0]
[1672807494273,55.51,13.523,13.509,20.0]
[1672807494488,30.0,13.522,13.509,20.0]
[1672807494679,55.52,13.521,13.508,50.0]
[1672807495631,55.51,13.523,13.508,50.0]
[1672807496597,55.51,13.523,13.508,20.0]
[1672807496908,30.0,13.522,13.508,20.0]
[1672807497112,55.52,13.521,13.508,50.0]
[1672807497521,55.52,13.521,13.508,19.0]
[1672807498486,55.52,13.521,13.508,49.0]
[1672807499123,55.51,13.523,13.508,49.0]
[1672807499853,55.51,13.523,13.508,19.0]
[1672807500045,45.14,13.52,13.507,143.93741755]
[1672807500258,30.0,13.518,13.507,119.08121755]
[1672807500462,55.54,13.517,13.507,119.08121755]
[1672807500687,51.26105795,13.519,13.509,30.0]
[1672807500898,110.037,13.521,13.51,20.0]
[1672807505194,165.557,13.521,13.509,20.0]
[1672807505420,30.0,13.52,13.508,20.0]